[Event "2nd Namma Bengaluru Open-A 2025"]
[Site "Bengaluru"]
[Date "2025.04.11"]
[Round "2.19"]
[White "Saranya, J."]
[Black "Deepan Chakkravarthy J."]
[Result "0-1"]
[Annotator "ChessBase"]
[ECO "C00"]
[WhiteElo "2102"]
[BlackElo "2394"]
[PlyCount "88"]
[EventDate "2025.04.10"]
[EventType "swiss"]
[EventCountry "IND"]
[SourceTitle "playchess.com"]
[Source "ChessBase"]
[SourceQuality "1"]
[TimeControl "5400+30"]

1. e4 {[%emt 0:00:10]} e6 {[%emt 0:00:04]} 2. Nf3 {[%emt 0:01:22]} d5 {[%emt 0:01:14]} 3. Nc3 {[%emt 0:00:14]} d4 {[%emt 0:00:36]} 4. Ne2 {[%emt 0:00:09]} c5 {[%emt 0:00:03]} 5. Ng3 {[%emt 0:00:11]} h5 {[%emt 0:00:49]} 6. h4 {[%emt 0:01:54]} Nc6 {[%emt 0:00:04]} 7. Bc4 {[%emt 0:01:10]} Bd6 {[%emt 0:00:18]} 8. Ne2 {[%emt 0:05:48]} Nf6 {[%emt 0:16:32]} 9. d3 {[%emt 0:00:38]} b5 {[%emt 0:00:04]} 10. Bb3 {[%emt 0:00:12]} Bb7 {[%emt 0:00:20]} 11. Bg5 {[%emt 0:01:29]} Qc7 {[%emt 0:00:49]} 12. O-O {[%emt 0:03:38]} Ng4 {[%emt 0:04:16]} 13. Qc1 {[%emt 0:10:23]} Na5 {[%emt 0:03:01]} 14. Bf4 {[%emt 0:10:41]} Bxf4 {[%emt 0:13:59]} 15. Qxf4 {[%emt 0:01:11]} Qxf4 {[%emt 0:00:08]} 16. Nxf4 {[%emt 0:00:04]} Ke7 {[%emt 0:01:07]} 17. c3 {[%emt 0:03:10]} dxc3 {[%emt 0:03:59]} 18. bxc3 {[%emt 0:00:18]} Nxb3 {[%emt 0:00:09]} 19. axb3 {[%emt 0:00:10]} Rhd8 {[%emt 0:00:05]} 20. Rfd1 {[%emt 0:02:55]} g6 {[%emt 0:00:20]} 21. b4 {[%emt 0:15:03]} cxb4 {[%emt 0:07:31]} 22. cxb4 {[%emt 0:00:08]} a6 {[%emt 0:00:03]} 23. Kf1 {[%emt 0:04:35]} Rd7 {[%emt 0:03:12]} 24. Ke2 {[%emt 0:05:01]} Rad8 {[%emt 0:00:43]} 25. g3 {[%emt 0:07:03]} e5 {[%emt 0:01:14]} 26. Ng2 {[%emt 0:04:06]} f5 {[%emt 0:00:18]} 27. exf5 {[%emt 0:04:16]} gxf5 {[%emt 0:09:00]} 28. Nge1 {[%emt 0:00:52]} e4 {[%emt 0:06:07]} 29. Ng5 {[%emt 0:01:21]} Bd5 {[%emt 0:00:05]} 30. f3 {[%emt 0:06:42]} exd3+ {[%emt 0:19:31]} 31. Nxd3 {[%emt 0:00:14]} Bc4 {[%emt 0:00:05]} 32. fxg4 {[%emt 0:00:12]} Rxd3 {[%emt 0:00:04]} 33. Rxd3 {[%emt 0:03:54]} Rxd3 {[%emt 0:00:02]} 34. Kf2 {[%emt 0:00:14]} hxg4 {[%emt 0:00:02]} 35. Rxa6 {[%emt 0:00:59]} Bd5 {[%emt 0:02:12]} 36. h5 {[%emt 0:02:39]} f4 {[%emt 0:00:02]} 37. h6 {[%emt 0:03:10]} fxg3+ {[%emt 0:00:36]} 38. Ke2 {[%emt 0:00:02]} g2 {[%emt 0:05:28]} 39. Ra1 {[%emt 0:00:54]} Ra3 {[%emt 0:00:37]} 40. Re1 {[%emt 0:00:52]} Ra2+ {[%emt 0:04:12]} 41. Kd3+ {[%emt 0:00:51]} Kf6 {[%emt 0:00:06]} 42. h7 {[%emt 0:01:43]} Ra8 {[%emt 0:00:05]} 43. Kd4 {[%emt 0:00:15]} Kxg5 {[%emt 0:00:25]} 44. Kxd5 {[%emt 0:00:15]} Kf4 {[%emt 0:00:07]} 0-1

[Event "2nd Namma Bengaluru Open-A 2025"]
[Site "Bengaluru"]
[Date "2025.04.11"]
[Round "2.20"]
[White "Kumaresh A"]
[Black "Panda Sambit"]
[Result "0-1"]
[Annotator "ChessBase"]
[ECO "A22"]
[WhiteElo "2097"]
[BlackElo "2391"]
[PlyCount "102"]
[EventDate "2025.04.10"]
[EventType "swiss"]
[EventCountry "IND"]
[SourceTitle "playchess.com"]
[Source "ChessBase"]
[SourceQuality "1"]
[TimeControl "5400+30"]

1. c4 {[%emt 0:03:13]} e5 {[%emt 0:06:18]} 2. g3 {[%emt 0:00:12]} c6 {[%emt 0:00:46]} 3. Nf3 {[%emt 0:04:07]} d6 {[%emt 0:00:25]} 4. Nc3 {[%emt 0:00:07]} Nf6 {[%emt 0:00:53]} 5. Bg2 {[%emt 0:00:32]} Be7 {[%emt 0:00:59]} 6. O-O {[%emt 0:00:12]} O-O {[%emt 0:01:12]} 7. e4 {[%emt 0:01:59]} c5 {[%emt 0:09:34]} 8. d3 {[%emt 0:03:01]} Nc6 {[%emt 0:03:27]} 9. Ne1 {[%emt 0:02:53]} Nd4 {[%emt 0:06:14]} 10. f4 {[%emt 0:03:10]} Bd7 {[%emt 0:03:05]} 11. Nf3 {[%emt 0:02:54]} Bg4 {[%emt 0:07:58]} 12. Be3 {[%emt 0:02:26]} Ne8 {[%emt 0:16:56]} 13. Qd2 {[%emt 0:06:13]} Bxf3 {[%emt 0:05:09]} 14. Bxf3 {[%emt 0:00:10]} Nc7 {[%emt 0:00:09]} 15. Bg2 {[%emt 0:04:43]} Rb8 {[%emt 0:05:47]} 16. Rf2 {[%emt 0:06:58]} a6 {[%emt 0:05:58]} 17. Raf1 {[%emt 0:00:21]} exf4 {[%emt 0:00:37]} 18. Bxf4 {[%emt 0:01:46]} Bf6 {[%emt 0:01:36]} 19. Kh1 {[%emt 0:03:36]} b5 {[%emt 0:04:28]} 20. Qd1 {[%emt 0:03:05]} b4 {[%emt 0:05:47]} 21. Nb1 {[%emt 0:01:30]} Be5 {[%emt 0:04:03]} 22. Qh5 {[%emt 0:06:40]} g6 {[%emt 0:03:13]} 23. Qh3 {[%emt 0:01:50]} Bg7 {[%emt 0:04:04]} 24. Nd2 {[%emt 0:03:41]} Nce6 {[%emt 0:00:38]} 25. Be3 {[%emt 0:00:53]} Qe7 {[%emt 0:01:39]} 26. Nf3 {[%emt 0:03:29]} Nxf3 {[%emt 0:00:21]} 27. Bxf3 Bd4 {[%emt 0:00:30]} 28. Bxd4 Nxd4 {[%emt 0:00:30]} 29. e5 Nxf3 {[%emt 0:00:30]} 30. exd6 Qxd6 {[%emt 0:00:30]} 31. Rxf3 Rbe8 {[%emt 0:00:30]} 32. Qg2 Re6 {[%emt 0:00:30]} 33. Qf2 Qe7 {[%emt 0:00:30]} 34. Qg2 Re2 {[%emt 0:00:30]} 35. R3f2 Rxf2 {[%emt 0:00:30]} 36. Qxf2 Rd8 {[%emt 0:00:30]} 37. Qf3 Rd6 {[%emt 0:00:30]} 38. Kg1 Kg7 {[%emt 0:00:30]} 39. b3 Qd7 {[%emt 0:00:30]} 40. Qf2 Rc6 {[%emt 0:00:30]} 41. Rd1 Qd6 {[%emt 0:00:30]} 42. Rf1 Qd7 {[%emt 0:00:30]} 43. Rd1 h5 {[%emt 0:00:30]} 44. Qf4 Re6 {[%emt 0:00:30]} 45. d4 Re2 {[%emt 0:00:30]} 46. Qf1 Rxa2 {[%emt 0:00:30]} 47. dxc5 Qe7 {[%emt 0:00:30]} 48. Rd6 Qe3+ {[%emt 0:00:30]} 49. Kh1 Qe4+ {[%emt 0:00:30]} 50. Kg1 Qe3+ {[%emt 0:00:30]} 51. Kh1 Rf2 {[%emt 0:00:30]} 0-1

[Event "2nd Namma Bengaluru Open-A 2025"]
[Site "Bengaluru"]
[Date "2025.04.11"]
[Round "2.21"]
[White "Sammed Jaykumar, Shete"]
[Black "Rakshith Srinivasan"]
[Result "1-0"]
[Annotator "ChessBase"]
[ECO "E90"]
[WhiteElo "2391"]
[BlackElo "2094"]
[PlyCount "75"]
[EventDate "2025.04.10"]
[EventType "swiss"]
[EventCountry "IND"]
[SourceTitle "playchess.com"]
[Source "ChessBase"]
[SourceQuality "1"]
[TimeControl "5400+30"]

1. d4 {[%emt 0:01:51]} Nf6 {[%emt 0:00:04]} 2. c4 {[%emt 0:00:12]} g6 {[%emt 0:00:04]} 3. Nc3 {[%emt 0:00:07]} Bg7 {[%emt 0:00:05]} 4. e4 {[%emt 0:00:17]} d6 {[%emt 0:00:04]} 5. h3 {[%emt 0:00:22]} O-O {[%emt 0:00:06]} 6. Be3 {[%emt 0:00:29]} c5 {[%emt 0:02:11]} 7. Nf3 {[%emt 0:01:39]} Qa5 {[%emt 0:06:29]} 8. Bd3 {[%emt 0:02:42]} Nfd7 {[%emt 0:04:42]} 9. O-O {[%emt 0:02:05]} Nc6 {[%emt 0:00:34]} 10. Be2 {[%emt 0:05:21]} e5 {[%emt 0:12:35]} 11. dxc5 {[%emt 0:08:34]} dxc5 {[%emt 0:00:25]} 12. Nd5 {[%emt 0:00:52]} Nd4 {[%emt 0:03:56]} 13. b4 {[%emt 0:00:57]} Nxe2+ {[%emt 0:03:50]} 14. Qxe2 {[%emt 0:00:08]} cxb4 {[%emt 0:00:04]} 15. Bd2 {[%emt 0:01:07]} Re8 {[%emt 0:06:00]} 16. Bxb4 {[%emt 0:16:13]} Qd8 {[%emt 0:00:05]} 17. Bd6 {[%emt 0:02:09]} Nf6 {[%emt 0:09:32]} 18. Bc7 {[%emt 0:01:08]} Qd7 {[%emt 0:00:26]} 19. Bxe5 {[%emt 0:01:54]} Nxd5 {[%emt 0:08:55]} 20. Bxg7 {[%emt 0:00:22]} Kxg7 {[%emt 0:00:22]} 21. cxd5 {[%emt 0:00:18]} Qa4 {[%emt 0:00:16]} 22. Rfe1 {[%emt 0:03:08]} Kg8 {[%emt 0:01:45]} 23. Qe3 {[%emt 0:04:21]} Qb4 {[%emt 0:09:01]} 24. Qh6 {[%emt 0:01:49]} Qf8 {[%emt 0:00:52]} 25. Qf4 {[%emt 0:00:18]} b6 {[%emt 0:03:16]} 26. Rac1 {[%emt 0:02:30]} Bb7 {[%emt 0:01:03]} 27. Ne5 {[%emt 0:09:50]} Qe7 {[%emt 0:02:34]} 28. Ng4 {[%emt 0:00:20]} Rec8 {[%emt 0:01:47]} 29. d6 {[%emt 0:01:08]} Qd8 {[%emt 0:03:23]} 30. e5 {[%emt 0:03:26]} Qf8 {[%emt 0:01:43]} 31. Rxc8 {[%emt 0:01:57]} Bxc8 {[%emt 0:00:26]} 32. Nf6+ {[%emt 0:00:31]} Kg7 {[%emt 0:00:46]} 33. d7 {[%emt 0:03:38]} Bb7 {[%emt 0:00:14]} 34. Ne8+ {[%emt 0:00:16]} Rxe8 {[%emt 0:00:55]} 35. Qf6+ {[%emt 0:00:39]} Kh6 {[%emt 0:00:29]} 36. dxe8=Q Qxe8 {[%emt 0:00:30]} 37. e6 Qc6 {[%emt 0:00:30]} 38. f3 1-0

[Event "2nd Namma Bengaluru Open-A 2025"]
[Site "Bengaluru"]
[Date "2025.04.11"]
[Round "2.22"]
[White "Murali Krishnan B T"]
[Black "Sathvik Adiga"]
[Result "1-0"]
[Annotator "ChessBase"]
[ECO "D50"]
[WhiteElo "2090"]
[BlackElo "2390"]
[PlyCount "75"]
[EventDate "2025.04.10"]
[EventType "swiss"]
[EventCountry "IND"]
[SourceTitle "playchess.com"]
[Source "ChessBase"]
[SourceQuality "1"]
[TimeControl "5400+30"]

1. d4 {[%emt 0:00:15]} d5 {[%emt 0:00:05]} 2. c4 {[%emt 0:00:18]} e6 {[%emt 0:00:04]} 3. Nc3 {[%emt 0:00:31]} Nf6 {[%emt 0:00:05]} 4. Bg5 {[%emt 0:00:32]} dxc4 {[%emt 0:00:06]} 5. e3 {[%emt 0:01:20]} a6 {[%emt 0:05:11]} 6. Bxc4 {[%emt 0:03:48]} c5 {[%emt 0:07:53]} 7. Nf3 {[%emt 0:06:31]} Nc6 {[%emt 0:07:10]} 8. O-O {[%emt 0:03:33]} b5 {[%emt 0:05:57]} 9. Bd3 {[%emt 0:06:13]} Bb7 {[%emt 0:08:17]} 10. a4 {[%emt 0:19:33]} b4 {[%emt 0:14:31]} 11. Ne4 {[%emt 0:03:22]} cxd4 {[%emt 0:01:00]} 12. exd4 {[%emt 0:01:36]} Be7 {[%emt 0:02:35]} 13. Nc5 {[%emt 0:05:53]} Bxc5 {[%emt 0:03:13]} 14. dxc5 {[%emt 0:01:17]} Qd5 {[%emt 0:00:50]} 15. Rc1 {[%emt 0:06:33]} Nd4 {[%emt 0:14:56]} 16. Be2 {[%emt 0:04:55]} e5 {[%emt 0:07:06]} 17. Be3 {[%emt 0:06:52]} Nxf3+ {[%emt 0:10:07]} 18. Bxf3 {[%emt 0:00:42]} Qxd1 {[%emt 0:00:08]} 19. Rfxd1 {[%emt 0:00:12]} Bxf3 {[%emt 0:00:10]} 20. gxf3 {[%emt 0:00:06]} Rd8 {[%emt 0:03:34]} 21. c6 {[%emt 0:02:54]} Rd5 {[%emt 0:01:20]} 22. Bc5 a5 {[%emt 0:00:30]} 23. Rxd5 Nxd5 {[%emt 0:00:30]} 24. Rd1 Nc7 {[%emt 0:00:30]} 25. Bb6 Ne6 {[%emt 0:00:30]} 26. Bxa5 Nd4 {[%emt 0:00:30]} 27. Bxb4 Nxc6 {[%emt 0:00:30]} 28. Bc5 f6 {[%emt 0:00:30]} 29. b4 Kf7 {[%emt 0:00:30]} 30. Rd7+ Kg6 {[%emt 0:00:30]} 31. Rc7 Nb8 {[%emt 0:00:30]} 32. b5 Rd8 {[%emt 0:00:30]} 33. a5 Rd1+ {[%emt 0:00:30]} 34. Kg2 f5 {[%emt 0:00:30]} 35. a6 Nd7 {[%emt 0:00:30]} 36. a7 Nf6 {[%emt 0:00:30]} 37. a8=Q Nd5 {[%emt 0:00:30]} 38. Qe8+ 1-0

[Event "2nd Namma Bengaluru Open-A 2025"]
[Site "Bengaluru"]
[Date "2025.04.11"]
[Round "2.23"]
[White "Harsh Suresh"]
[Black "Nirvan Bhamidi"]
[Result "1/2-1/2"]
[Annotator "ChessBase"]
[ECO "A28"]
[WhiteElo "2389"]
[BlackElo "2089"]
[PlyCount "75"]
[EventDate "2025.04.10"]
[EventType "swiss"]
[EventCountry "IND"]
[SourceTitle "playchess.com"]
[Source "ChessBase"]
[SourceQuality "1"]
[TimeControl "5400+30"]

1. c4 {[%emt 0:01:30]} Nf6 {[%emt 0:00:05]} 2. Nc3 {[%emt 0:00:31]} e5 {[%emt 0:00:36]} 3. Nf3 {[%emt 0:00:18]} Nc6 {[%emt 0:00:10]} 4. e4 {[%emt 0:00:12]} Bb4 {[%emt 0:00:21]} 5. d3 {[%emt 0:00:19]} d6 {[%emt 0:00:22]} 6. Be2 {[%emt 0:00:13]} O-O {[%emt 0:02:20]} 7. O-O {[%emt 0:00:13]} h6 {[%emt 0:03:08]} 8. a3 {[%emt 0:00:14]} Bc5 {[%emt 0:00:19]} 9. b4 {[%emt 0:01:31]} Bb6 {[%emt 0:02:56]} 10. Na4 {[%emt 0:02:36]} Bg4 {[%emt 0:10:02]} 11. Nxb6 {[%emt 0:09:02]} axb6 {[%emt 0:00:10]} 12. Bb2 {[%emt 0:00:09]} Nd7 {[%emt 0:02:43]} 13. h3 {[%emt 0:21:48]} Bxf3 {[%emt 0:03:43]} 14. Bxf3 {[%emt 0:00:31]} Re8 {[%emt 0:00:16]} 15. Bg4 {[%emt 0:03:21]} Nf8 {[%emt 0:04:23]} 16. f4 {[%emt 0:06:34]} Ne6 {[%emt 0:02:32]} 17. f5 {[%emt 0:04:38]} Ned4 {[%emt 0:06:25]} 18. f6 {[%emt 0:03:50]} gxf6 {[%emt 0:05:04]} 19. Bc1 {[%emt 0:22:47]} Kg7 {[%emt 0:07:20]} 20. Ra2 {[%emt 0:04:52]} Ne7 {[%emt 0:03:52]} 21. Qe1 {[%emt 0:01:56]} Rh8 {[%emt 0:02:31]} 22. Qg3 {[%emt 0:02:00]} Ng8 {[%emt 0:00:29]} 23. Be3 {[%emt 0:06:10]} Kf8 {[%emt 0:01:41]} 24. Bxd4 {[%emt 0:00:59]} exd4 {[%emt 0:00:07]} 25. Bd1 {[%emt 0:00:27]} Rh7 {[%emt 0:01:39]} 26. a4 {[%emt 0:00:17]} Qe7 {[%emt 0:01:02]} 27. Raf2 {[%emt 0:00:58]} Rg7 {[%emt 0:00:09]} 28. Qf3 {[%emt 0:01:15]} Qe5 {[%emt 0:00:20]} 29. Qe2 {[%emt 0:00:18]} Qg5 {[%emt 0:02:41]} 30. Rf5 {[%emt 0:03:32]} Qc1 {[%emt 0:01:37]} 31. Kh2 {[%emt 0:02:05]} Qc3 {[%emt 0:00:32]} 32. b5 {[%emt 0:00:07]} Re8 {[%emt 0:00:37]} 33. R1f3 {[%emt 0:01:05]} Re5 {[%emt 0:00:45]} 34. Qf2 {[%emt 0:00:12]} Rg5 {[%emt 0:04:05]} 35. R5f4 {[%emt 0:00:37]} Rg7 {[%emt 0:00:30]} 36. Rf5 {[%emt 0:00:18]} Rg5 {[%emt 0:00:15]} 37. R5f4 {[%emt 0:00:46]} Rg7 {[%emt 0:00:32]} 38. Rf5 {[%emt 0:00:21]} 1/2-1/2

[Event "2nd Namma Bengaluru Open-A 2025"]
[Site "Bengaluru"]
[Date "2025.04.11"]
[Round "2.24"]
[White "Bhoir Paras Dilip"]
[Black "Ajay Karthikeyan"]
[Result "1-0"]
[Annotator "ChessBase"]
[ECO "B06"]
[WhiteElo "2085"]
[BlackElo "2387"]
[PlyCount "115"]
[EventDate "2025.04.10"]
[EventType "swiss"]
[EventCountry "IND"]
[SourceTitle "playchess.com"]
[Source "ChessBase"]
[SourceQuality "1"]
[TimeControl "5400+30"]

1. e4 {[%emt 0:02:11]} g6 {[%emt 0:02:16]} 2. d4 {[%emt 0:00:29]} Bg7 {[%emt 0:00:02]} 3. Nf3 {[%emt 0:01:26]} d6 {[%emt 0:00:16]} 4. Nc3 {[%emt 0:00:52]} a6 {[%emt 0:00:11]} 5. a4 {[%emt 0:00:28]} Nc6 {[%emt 0:02:46]} 6. Be3 {[%emt 0:03:16]} Bg4 {[%emt 0:09:06]} 7. Be2 {[%emt 0:02:50]} Nf6 {[%emt 0:00:43]} 8. d5 {[%emt 0:06:28]} Bxf3 {[%emt 0:00:33]} 9. Bxf3 {[%emt 0:04:56]} Ne5 {[%emt 0:02:03]} 10. Be2 {[%emt 0:00:30]} c6 {[%emt 0:00:05]} 11. f4 {[%emt 0:03:28]} Ned7 {[%emt 0:00:22]} 12. dxc6 {[%emt 0:02:28]} bxc6 {[%emt 0:01:43]} 13. a5 {[%emt 0:02:08]} O-O {[%emt 0:01:31]} 14. O-O {[%emt 0:02:02]} Qc7 {[%emt 0:04:59]} 15. Qd2 {[%emt 0:03:58]} Rfb8 {[%emt 0:03:41]} 16. Ra2 {[%emt 0:04:37]} Rb4 {[%emt 0:00:34]} 17. Bf3 {[%emt 0:05:11]} Rab8 {[%emt 0:01:33]} 18. b3 {[%emt 0:03:55]} e6 {[%emt 0:05:15]} 19. Qd3 {[%emt 0:08:09]} d5 {[%emt 0:12:29]} 20. e5 {[%emt 0:09:57]} Ne8 {[%emt 0:00:22]} 21. Na4 {[%emt 0:04:41]} R4b5 {[%emt 0:15:42]} 22. Nb6 {[%emt 0:01:49]} Bf8 {[%emt 0:00:10]} 23. Kh1 {[%emt 0:05:30]} Bb4 {[%emt 0:09:15]} 24. Nxd7 {[%emt 0:02:09]} Qxd7 {[%emt 0:00:10]} 25. Bb6 {[%emt 0:00:32]} Be7 {[%emt 0:04:21]} 26. c4 {[%emt 0:05:47]} Rb4 {[%emt 0:00:18]} 27. cxd5 {[%emt 0:01:09]} exd5 {[%emt 0:02:02]} 28. Qxa6 {[%emt 0:03:06]} Rxf4 {[%emt 0:00:11]} 29. Rc2 {[%emt 0:01:21]} Rb4 {[%emt 0:02:26]} 30. Rfc1 {[%emt 0:02:15]} Bg5 {[%emt 0:00:32]} 31. Rb1 {[%emt 0:01:17]} Bf4 {[%emt 0:02:44]} 32. Qe2 {[%emt 0:05:01]} Ra8 {[%emt 0:04:44]} 33. Qe1 {[%emt 0:01:14]} Rb5 {[%emt 0:10:36]} 34. Be2 {[%emt 0:00:05]} Rxb6 {[%emt 0:01:15]} 35. axb6 {[%emt 0:00:03]} Qb7 {[%emt 0:01:40]} 36. Qc3 {[%emt 0:01:22]} Qxb6 {[%emt 0:01:13]} 37. Rf1 {[%emt 0:00:51]} Qe3 {[%emt 0:00:39]} 38. Qxe3 {[%emt 0:01:19]} Bxe3 {[%emt 0:00:01]} 39. Rxc6 {[%emt 0:00:06]} Rd8 {[%emt 0:00:53]} 40. b4 {[%emt 0:00:28]} Ng7 {[%emt 0:00:09]} 41. Rd6 {[%emt 0:00:34]} Rb8 {[%emt 0:00:01]} 42. Rxd5 {[%emt 0:00:19]} Ne6 {[%emt 0:00:01]} 43. Rb5 {[%emt 0:00:23]} Rd8 {[%emt 0:01:50]} 44. Bc4 {[%emt 0:00:08]} Ng5 {[%emt 0:00:32]} 45. Bd5 {[%emt 0:00:54]} Bd4 {[%emt 0:00:34]} 46. h4 {[%emt 0:00:15]} Ne6 {[%emt 0:00:10]} 47. Bxe6 {[%emt 0:00:04]} fxe6 {[%emt 0:00:01]} 48. Rd1 {[%emt 0:00:07]} g5 {[%emt 0:00:35]} 49. hxg5 {[%emt 0:00:25]} Kg7 {[%emt 0:00:02]} 50. Rb7+ {[%emt 0:00:19]} Kg6 {[%emt 0:00:02]} 51. Rc7 {[%emt 0:00:32]} Kf5 {[%emt 0:00:45]} 52. Rc4 {[%emt 0:00:19]} Kxe5 {[%emt 0:00:52]} 53. b5 {[%emt 0:00:03]} Bb6 {[%emt 0:00:12]} 54. Rxd8 {[%emt 0:00:06]} Bxd8 {[%emt 0:00:01]} 55. Rc8 {[%emt 0:00:11]} Bb6 {[%emt 0:00:25]} 56. Rc6 {[%emt 0:00:10]} Be3 {[%emt 0:01:43]} 57. b6 {[%emt 0:00:05]} Kd5 {[%emt 0:00:03]} 58. b7 {[%emt 0:00:03]} 1-0

[Event "2nd Namma Bengaluru Open-A 2025"]
[Site "Bengaluru"]
[Date "2025.04.11"]
[Round "2.25"]
[White "Vignesh B"]
[Black "Soham Roy"]
[Result "1/2-1/2"]
[Annotator "ChessBase"]
[ECO "C56"]
[WhiteElo "2191"]
[BlackElo "2085"]
[PlyCount "99"]
[EventDate "2025.04.10"]
[EventType "swiss"]
[EventCountry "IND"]
[SourceTitle "playchess.com"]
[Source "ChessBase"]
[SourceQuality "1"]
[TimeControl "5400+30"]

1. e4 {[%emt 0:00:04]} e5 {[%emt 0:00:06]} 2. Nf3 {[%emt 0:00:08]} Nc6 {[%emt 0:00:04]} 3. Bc4 {[%emt 0:00:08]} d6 {[%emt 0:00:07]} 4. d4 {[%emt 0:00:08]} Nf6 {[%emt 0:00:05]} 5. dxe5 {[%emt 0:01:04]} dxe5 {[%emt 0:00:12]} 6. Qxd8+ {[%emt 0:00:25]} Nxd8 {[%emt 0:00:05]} 7. Nxe5 {[%emt 0:00:26]} Bd6 {[%emt 0:00:07]} 8. Nd3 {[%emt 0:00:17]} Nxe4 {[%emt 0:00:11]} 9. O-O {[%emt 0:00:08]} Be6 {[%emt 0:01:23]} 10. Bxe6 {[%emt 0:03:07]} Nxe6 {[%emt 0:00:05]} 11. Re1 {[%emt 0:01:05]} N4c5 {[%emt 0:00:53]} 12. Ne5 {[%emt 0:08:50]} O-O {[%emt 0:04:43]} 13. Na3 {[%emt 0:05:24]} Rfe8 {[%emt 0:08:05]} 14. Nec4 {[%emt 0:02:06]} Bf4 {[%emt 0:02:31]} 15. Bxf4 {[%emt 0:11:48]} Nxf4 {[%emt 0:00:11]} 16. Nb5 {[%emt 0:00:13]} Rxe1+ {[%emt 0:12:27]} 17. Rxe1 {[%emt 0:00:03]} Nfe6 {[%emt 0:00:14]} 18. Na5 {[%emt 0:26:39]} c6 {[%emt 0:13:40]} 19. Na3 {[%emt 0:09:37]} Rc8 {[%emt 0:03:12]} 20. b4 {[%emt 0:05:17]} b6 {[%emt 0:01:47]} 21. N5c4 {[%emt 0:01:49]} Na6 {[%emt 0:04:01]} 22. c3 {[%emt 0:00:06]} Nac7 {[%emt 0:00:31]} 23. Ne5 {[%emt 0:04:19]} Nb5 {[%emt 0:05:31]} 24. Nb1 {[%emt 0:00:39]} Kf8 {[%emt 0:04:25]} 25. a4 {[%emt 0:02:06]} Nd6 {[%emt 0:00:30]} 26. Na3 {[%emt 0:02:47]} f6 {[%emt 0:08:37]} 27. Nec4 {[%emt 0:00:26]} Nxc4 {[%emt 0:30:17]} 28. Nxc4 {[%emt 0:00:04]} Nc7 {[%emt 0:00:00]} 29. a5 {[%emt 0:03:54]} Nd5 {[%emt 0:00:00]} 30. axb6 {[%emt 0:01:50]} axb6 {[%emt 0:00:00]} 31. Rc1 {[%emt 0:02:01]} b5 {[%emt 0:00:00]} 32. Nd6 {[%emt 0:03:25]} Rd8 {[%emt 0:00:00]} 33. Nb7 {[%emt 0:00:26]} Nxc3 {[%emt 0:00:00]} 34. Nxd8 {[%emt 0:00:06]} Ne2+ {[%emt 0:00:00]} 35. Kf1 {[%emt 0:00:07]} Nxc1 {[%emt 0:00:00]} 36. Nxc6 {[%emt 0:00:08]} Ke8 {[%emt 0:00:00]} 37. Nd4 {[%emt 0:01:17]} Kd7 {[%emt 0:00:00]} 38. g3 {[%emt 0:01:01]} Nd3 {[%emt 0:00:00]} 39. Nc2 {[%emt 0:00:35]} Ne5 {[%emt 0:00:00]} 40. Ke2 {[%emt 0:00:13]} Nc6 {[%emt 0:00:00]} 41. Kd3 {[%emt 0:00:59]} Ke6 {[%emt 0:00:00]} 42. f3 {[%emt 0:02:27]} Kd5 {[%emt 0:00:00]} 43. Ne3+ {[%emt 0:00:57]} Ke6 {[%emt 0:00:00]} 44. Kc3 {[%emt 0:01:05]} Ke5 {[%emt 0:00:00]} 45. Nc2 {[%emt 0:00:38]} Ne7 {[%emt 0:00:00]} 46. Na3 {[%emt 0:00:14]} Nd5+ {[%emt 0:00:00]} 47. Kb3 {[%emt 0:00:20]} Nc7 {[%emt 0:00:00]} 48. Kc3 {[%emt 0:00:06]} Nd5+ {[%emt 0:00:00]} 49. Kb3 {[%emt 0:01:08]} Nc7 {[%emt 0:00:00]} 50. Kc3 {[%emt 0:00:05]} 1/2-1/2

[Event "2nd Namma Bengaluru Open-A 2025"]
[Site "Bengaluru"]
[Date "2025.04.11"]
[Round "2.26"]
[White "Kandi Santosh Sai Karthik"]
[Black "Viani Antonio Dcunha"]
[Result "0-1"]
[Annotator "ChessBase"]
[ECO "B12"]
[WhiteElo "2085"]
[BlackElo "2378"]
[PlyCount "88"]
[EventDate "2025.04.10"]
[EventType "swiss"]
[EventCountry "IND"]
[SourceTitle "playchess.com"]
[Source "ChessBase"]
[SourceQuality "1"]
[TimeControl "5400+30"]

1. e4 {[%emt 0:00:55]} c6 {[%emt 0:00:14]} 2. d4 {[%emt 0:00:16]} d5 {[%emt 0:00:06]} 3. e5 {[%emt 0:00:06]} Bf5 {[%emt 0:01:32]} 4. h4 {[%emt 0:01:25]} h6 {[%emt 0:00:37]} 5. g4 {[%emt 0:02:00]} Bd7 {[%emt 0:01:26]} 6. Be3 {[%emt 0:22:34]} Qb6 {[%emt 0:06:43]} 7. Nd2 {[%emt 0:10:11]} c5 {[%emt 0:07:24]} 8. dxc5 {[%emt 0:57:03]} Qxb2 {[%emt 0:04:37]} 9. Rb1 {[%emt 0:00:00]} Qxe5 {[%emt 0:01:46]} 10. Rxb7 {[%emt 0:00:00]} d4 {[%emt 0:09:46]} 11. Ngf3 {[%emt 0:00:00]} Qxc5 {[%emt 0:06:38]} 12. Nxd4 {[%emt 0:00:00]} e5 {[%emt 0:08:11]} 13. Ne4 {[%emt 0:00:00]} Qa5+ {[%emt 0:05:20]} 14. Bd2 {[%emt 0:00:00]} Qd5 {[%emt 0:00:53]} 15. Bg2 {[%emt 0:01:23]} Qxd4 {[%emt 0:00:37]} 16. Qb1 {[%emt 0:00:57]} Na6 {[%emt 0:05:18]} 17. Rh3 {[%emt 0:00:52]} Nc5 {[%emt 0:06:31]} 18. Rb8+ {[%emt 0:00:21]} Rxb8 {[%emt 0:00:17]} 19. Qxb8+ {[%emt 0:00:03]} Ke7 {[%emt 0:00:04]} 20. Bc3 {[%emt 0:01:51]} Na6 {[%emt 0:01:31]} 21. Qb7 {[%emt 0:00:31]} Qb6 {[%emt 0:00:13]} 22. Qd5 {[%emt 0:00:28]} Nf6 {[%emt 0:31:46]} 23. Qxe5+ {[%emt 0:00:32]} Qe6 {[%emt 0:00:00]} 24. Qd4 {[%emt 0:00:29]} Nd5 {[%emt 0:00:00]} 25. Bd2 {[%emt 0:00:26]} f6 {[%emt 0:00:00]} 26. c4 {[%emt 0:00:29]} Ndb4 {[%emt 0:00:00]} 27. Kf1 {[%emt 0:00:36]} Kf7 {[%emt 0:00:00]} 28. Qxa7 {[%emt 0:00:30]} Qxc4+ {[%emt 0:00:00]} 29. Kg1 {[%emt 0:00:23]} Qc7 {[%emt 0:00:00]} 30. Qd4 {[%emt 0:00:28]} Bxg4 {[%emt 0:00:00]} 31. Nxf6 {[%emt 0:00:40]} Bxh3 {[%emt 0:00:00]} 32. Nd5 {[%emt 0:01:01]} Bc5 {[%emt 0:00:00]} 33. Qe4 {[%emt 0:00:00]} Nxd5 {[%emt 0:00:00]} 34. Bxh3 {[%emt 0:00:02]} Qd6 {[%emt 0:00:00]} 35. Qf3+ {[%emt 0:00:54]} Nf6 {[%emt 0:00:00]} 36. Bf4 {[%emt 0:00:12]} Qd5 {[%emt 0:00:00]} 37. Qe2 {[%emt 0:00:14]} Qe4 {[%emt 0:00:00]} 38. Qd2 {[%emt 0:01:05]} Re8 {[%emt 0:00:00]} 39. Bf1 {[%emt 0:00:32]} Nb4 {[%emt 0:00:00]} 40. Bg3 {[%emt 0:00:30]} Nc2 {[%emt 0:00:00]} 41. Qc3 {[%emt 0:00:30]} Ne3 {[%emt 0:00:00]} 42. Bh3 {[%emt 0:00:28]} Qb1+ {[%emt 0:00:50]} 43. Kh2 {[%emt 0:00:09]} Nf1+ {[%emt 0:01:03]} 44. Bxf1 {[%emt 0:00:34]} Qxf1 {[%emt 0:00:10]} 0-1